bitfinex-derivatives/quotes_SOLF0:USTF0_20250110
["timestamp","ask_amount","ask_price","bid_price","bid_amount"]
[1736508110321,2.6066,191.83,191.78,2.6071]
[1736508110722,2.6066,191.83,191.76,8.36084838]
[1736508111222,8.36084838,191.84,191.78,2.6072]
[1736508111522,8.36084838,191.82,191.78,2.6072]
[1736508111720,8.36084838,191.82,191.76,8.36084838]
[1736508111926,8.36084838,191.82,191.79,2.6071]
[1736508113626,8.09590756,191.9,191.76,8.36084838]
[1736508113821,8.09590756,191.9,191.82,2.6066]
[1736508113822,10.96704838,191.86,191.82,2.6066]
[1736508114724,8.36084838,191.86,191.78,8.36084838]
[1736508115027,8.36084838,191.86,191.8,8.36084838]
[1736508115532,8.36084838,191.88,191.82,8.36084838]
[1736508116227,12.86084838,191.9,191.87,2.606]
[1736508116730,12.86084838,191.9,191.83,3.0346]
[1736508116930,12.86084838,191.9,191.87,2.6059]
[1736508118331,8.36084838,191.9,191.87,2.6059]
[1736508118530,8.36084838,191.9,191.88,2.6058]
[1736508118730,2.6052,191.93,191.84,8.36084838]
[1736508118932,8.36084838,191.93,191.86,8.36084838]
[1736508119130,8.36084838,191.93,191.88,2.6059]
[1736508119433,8.36084838,191.93,191.86,8.36084838]
[1736508120329,2.6052,191.93,191.89,2.6057]
[1736508120529,8.36084838,191.93,191.86,8.36084838]
[1736508121030,10.96604838,191.93,191.88,2.6059]
[1736508122134,10.96604838,191.93,191.86,8.36084838]
[1736508122334,10.96604838,191.93,191.89,2.6057]
[1736508123831,8.36084838,191.93,191.84,1.5695]
[1736508124035,4.5,191.94,191.84,9.93034838]
[1736508124235,8.36084838,191.92,191.84,9.93034838]
[1736508124429,10.96614838,191.92,191.88,2.6058]
[1736508124632,8.36084838,191.92,191.86,8.36084838]
[1736508126131,8.36084838,191.92,191.89,2.6057]
[1736508128240,8.36084838,191.92,191.86,8.36084838]
[1736508128441,8.36084838,191.92,191.9,2.6056]
[1736508129237,15.46594838,191.94,191.91,2.6055]
[1736508129841,12.86084838,191.94,191.92,2.6053]
[1736508130536,12.86084838,191.94,191.88,8.36084838]
[1736508130741,8.36084838,191.92,191.86,8.36084838]
[1736508131340,8.36084838,191.92,191.84,1.5695]
[1736508131341,10.96624838,191.92,191.88,2.6058]
[1736508131838,8.36084838,191.92,191.88,2.6058]
[1736508132143,2.6055,191.91,191.87,2.6059]
[1736508132643,2.6055,191.91,191.88,2.6059]
[1736508132947,2.6055,191.91,191.85,8.36084838]
[1736508134237,2.6055,191.91,191.87,2.606]
[1736508136344,2.6061,191.87,191.83,3.0346]
[1736508136549,8.36084838,191.86,191.8,8.36084838]
[1736508137439,8.36084838,191.86,191.78,12.98884838]
[1736508139249,10.96734838,191.84,191.8,2.6069]
[1736508141650,2.6066,191.83,191.78,5.73]
[1736508141850,8.36084838,191.82,191.78,5.73]
[1736508142246,10.96754838,191.82,191.78,5.73]
[1736508146541,10.96754838,191.82,191.78,3.1228]
[1736508146745,10.96754838,191.82,191.79,2.6071]
[1736508147453,8.36084838,191.82,191.72,1.5659]
[1736508147754,8.36084838,191.82,191.74,8.36084838]
[1736508148141,2.607,191.8,191.76,2.6074]
[1736508150857,2.6068,191.81,191.77,2.6073]
[1736508153053,10.96754838,191.82,191.78,2.6072]
[1736508156753,2.6064,191.84,191.8,2.6068]
[1736508156952,10.96724838,191.84,191.8,2.6068]
[1736508158551,8.36084838,191.84,191.8,2.6068]
[1736508158748,2.6066,191.83,191.8,2.6068]
[1736508158953,8.36084838,191.84,191.81,2.6068]
[1736508159356,10.96734838,191.84,191.81,2.6068]
[1736508160856,2.6066,191.83,191.8,2.6069]
[1736508163265,10.96734838,191.84,191.8,2.6069]
[1736508163553,3.19685352,191.91,191.78,8.36084838]
[1736508163760,8.36084838,191.87,191.8,8.36084838]
[1736508164164,8.36084838,191.87,191.81,3.0501]
[1736508164460,8.36084838,191.87,191.82,8.36084838]
[1736508164662,8.36084838,191.87,191.84,2.6063]
[1736508164865,3.19685352,191.91,191.82,8.36084838]
[1736508164866,10.96654838,191.89,191.82,8.36084838]
[1736508165065,10.96654838,191.89,191.82,9.87344838]
[1736508165453,10.96654838,191.89,191.85,2.6062]
[1736508168458,2.6057,191.89,191.85,2.6062]
[1736508168665,10.96654838,191.89,191.85,2.6062]
[1736508169765,8.36084838,191.89,191.86,2.6061]
[1736508169962,2.6056,191.9,191.86,2.6061]
[1736508170162,2.6056,191.9,191.84,8.36084838]
[1736508171267,14.1632019,191.91,191.87,2.6059]
[1736508171667,14.1632019,191.91,191.84,8.36084838]
[1736508172271,14.1632019,191.91,191.88,2.6059]
[1736508174470,10.96634838,191.91,191.88,2.6059]
[1736508178764,85.90467089,192.0,191.88,8.36084838]
[1736508178972,8.36084838,191.95,191.88,8.36084838]
[1736508179669,10.96584838,191.95,191.91,2.6054]
[1736508181073,2.6051,191.94,191.91,2.6054]
[1736508181671,2.6051,191.94,191.82,1.5126]
[1736508181672,8.36084838,191.93,191.84,8.36084838]
[1736508181872,4.5,191.98,191.84,8.36084838]
[1736508181873,8.36084838,191.89,191.84,8.36084838]
[1736508182376,10.96694838,191.87,191.82,1.5126]
[1736508183072,2.6061,191.87,191.83,2.6065]
[1736508183280,10.96674838,191.88,191.82,1.5126]
[1736508183467,8.36084838,191.88,191.82,1.5126]
[1736508183669,8.36084838,191.88,191.84,2.6064]
[1736508185675,8.36084838,191.88,191.82,2.6066]
[1736508186275,2.6061,191.87,191.82,2.6066]
[1736508186980,8.36084838,191.86,191.82,2.6066]
[1736508187176,10.96704838,191.86,191.82,2.6066]
[1736508188280,10.96704838,191.86,191.83,2.6065]
[1736508189273,8.36084838,191.86,191.83,2.6065]
[1736508190581,8.36084838,191.86,191.84,2.6063]
[1736508190784,10.96674838,191.88,191.84,2.6063]
[1736508191783,85.90467089,191.95,191.81,8.36084838]
[1736508191983,8.36084838,191.9,191.83,8.36084838]
[1736508192884,10.96644838,191.9,191.86,2.606]
[1736508196786,8.36084838,191.9,191.83,8.36084838]
[1736508196987,8.36084838,191.92,191.85,8.36084838]
[1736508197891,10.96624838,191.92,191.78,6.0529]
[1736508198091,10.96624838,191.92,191.85,8.36084838]
[1736508198386,8.36084838,191.9,191.85,8.36084838]
[1736508198588,2.6057,191.89,191.86,2.606]
[1736508198788,8.36084838,191.91,191.83,8.36084838]
[1736508199188,8.36084838,191.91,191.87,2.6059]
[1736508199579,8.36084838,191.91,191.85,8.36084838]
[1736508199783,8.36084838,191.93,191.87,8.36084838]
[1736508199985,8.36084838,191.95,191.89,8.36084838]
[1736508200385,10.96584838,191.95,191.92,2.6053]
[1736508200988,10.96584838,191.95,191.91,2.6054]
[1736508202084,2.6051,191.94,191.91,2.6054]
[1736508202693,8.36084838,191.95,191.87,8.36084838]
[1736508202887,8.36084838,191.93,191.79,161.02357902]
[1736508203094,7.61487861,191.97,191.85,8.36084838]
[1736508203095,8.36084838,191.91,191.85,8.36084838]
[1736508203393,2.6057,191.9,191.86,2.6061]
[1736508204487,2.6057,191.9,191.87,2.606]
[1736508209198,8.36084838,191.89,191.85,2.6062]
[1736508210094,2.6059,191.88,191.85,2.6062]
[1736508211297,8.36084838,191.89,191.82,8.36084838]
[1736508211498,2.6062,191.86,191.82,10.96744838]
[1736508212601,2.6062,191.86,191.82,8.36084838]
[1736508212803,2.6062,191.86,191.83,2.6065]
[1736508213396,2.606,191.87,191.83,2.6065]
[1736508213598,8.36084838,191.89,191.82,8.36084838]
[1736508214506,10.96654838,191.89,191.85,2.6062]
[1736508214707,10.96654838,191.89,191.82,8.36084838]
[1736508216108,10.96654838,191.89,191.86,2.6061]
[1736508217809,2.6056,191.9,191.86,2.6061]
[1736508218007,8.36084838,191.91,191.88,2.6058]
[1736508218905,7.1055,191.92,191.89,2.6057]
[1736508219105,2.6055,191.92,191.89,2.6057]
[1736508219503,8.36084838,191.93,191.86,8.36084838]
[1736508219905,12.86084838,191.95,191.88,8.36084838]
[1736508220908,15.46584838,191.95,191.91,2.6054]
[1736508221804,10.96584838,191.95,191.91,2.6054]
[1736508222902,2.6051,191.94,191.91,2.6054]
[1736508223608,2.6054,191.92,191.89,2.6057]
[1736508223810,7.61487861,191.97,191.89,2.6057]
[1736508224007,8.36084838,191.93,191.89,2.6057]
[1736508224510,2.605,191.95,191.91,2.6054]
[1736508224710,8.36084838,191.95,191.88,8.36084838]
[1736508225611,10.96604838,191.93,191.88,2.6058]
[1736508225805,8.36084838,191.93,191.87,1.5057]
[1736508226204,10.96604838,191.93,191.89,2.6056]
[1736508227211,8.36084838,191.93,191.89,2.6056]
[1736508227512,2.6054,191.92,191.89,2.6056]
[1736508228314,8.36084838,191.93,191.89,2.6056]
[1736508228510,10.96604838,191.93,191.89,2.6056]
[1736508238821,10.96604838,191.93,191.87,3.025]
[1736508239021,10.96604838,191.93,191.9,2.6056]
[1736508242021,10.96604838,191.93,191.87,3.025]
[1736508242221,10.96604838,191.93,191.89,2.6057]
[1736508242925,2.6052,191.93,191.89,2.6057]
[1736508243123,2.6052,191.93,191.9,2.6056]
[1736508243725,8.36084838,191.94,191.9,2.6056]
[1736508243929,10.96604838,191.94,191.9,2.6056]
[1736508245718,2.6052,191.93,191.9,2.6056]
[1736508246718,8.36084838,191.94,191.88,8.36084838]
[1736508246923,8.36084838,191.94,191.91,2.6054]
[1736508248227,10.96594838,191.94,191.91,2.6054]
[1736508249627,2.6051,191.94,191.91,2.6054]
[1736508250133,2.6049,191.95,191.92,2.6052]
[1736508252826,8.36084838,191.94,191.87,3.025]
[1736508254230,2.6054,191.92,191.89,2.6057]
[1736508254829,2.6055,191.91,191.88,2.6059]
[1736508255031,2.6055,191.91,191.87,3.025]
[1736508255734,2.6055,191.91,191.85,8.36084838]
[1736508256233,2.6055,191.91,191.87,2.606]
[1736508258932,8.36084838,191.9,191.8,3.124]
[1736508259136,8.36084838,191.88,191.81,8.36084838]
[1736508261138,2.6061,191.87,191.83,2.6065]
[1736508266746,2.6061,191.87,191.84,2.6064]
[1736508270256,2.6061,191.87,191.8,3.124]
[1736508270456,2.6061,191.87,191.82,2.6066]
[1736508270656,2.6061,191.87,191.81,8.36084838]
[1736508271954,2.6061,191.87,191.83,2.6065]
[1736508273457,8.36084838,191.86,191.8,3.124]
[1736508273757,8.36084838,191.84,191.8,3.124]
[1736508274462,2.6066,191.83,191.77,9.99984838]
[1736508275656,2.6066,191.83,191.77,1.639]
[1736508275852,2.6066,191.83,191.77,9.99984838]
[1736508276054,2.6066,191.83,191.79,2.6071]
[1736508277458,10.96724838,191.84,191.8,2.607]
[1736508277856,8.36084838,191.84,191.77,9.99984838]
[1736508278155,8.36084838,191.82,191.75,52.43044492]
[1736508278857,10.96764838,191.82,191.78,2.6072]
[1736508279157,8.36084838,191.8,191.75,44.06959654]
[1736508279648,2.6071,191.79,191.75,46.67709654]
[1736508280356,8.36084838,191.8,191.75,43.53969654]
[1736508282052,2.6071,191.79,191.75,43.53969654]
[1736508283452,8.36084838,191.8,191.75,43.53969654]
[1736508283758,10.96784838,191.8,191.75,43.53969654]
[1736508285358,2.607,191.8,191.75,43.53969654]
[1736508285557,10.96784838,191.8,191.75,43.53969654]
[1736508285756,10.96784838,191.8,191.76,2.6075]
[1736508286858,2.6063,191.85,191.77,2.6072]
[1736508287063,8.36084838,191.82,191.76,8.36084838]
[1736508287458,10.96764838,191.82,191.78,2.6072]
[1736508287860,4.5,191.84,191.76,8.36084838]
[1736508288061,10.96744838,191.83,191.78,2.6072]
[1736508288861,10.96744838,191.83,191.76,8.36084838]
[1736508289063,10.96744838,191.83,191.79,2.6071]
[1736508289265,8.36084838,191.83,191.76,11.50164838]
[1736508289662,8.36084838,191.83,191.8,2.6069]
[1736508290068,10.96744838,191.83,191.8,2.6069]
[1736508302569,10.96744838,191.83,191.79,2.6071]
[1736508302776,2.6065,191.84,191.78,8.36084838]
[1736508303675,2.6065,191.84,191.79,2.607]
[1736508303874,2.6065,191.84,191.78,8.36084838]
[1736508304778,2.6065,191.84,191.8,2.6069]
[1736508305172,2.6067,191.82,191.79,2.6071]
[1736508306782,8.36084838,191.83,191.77,1.5162]
[1736508306977,2.6068,191.81,191.78,2.6072]
[1736508310681,2.6068,191.81,191.77,4.1236]
[1736508310873,2.607,191.8,191.77,4.1236]
[1736508315980,2.6068,191.81,191.77,4.1236]
[1736508316585,85.90467089,191.88,191.77,9.87704838]
[1736508316886,8.36084838,191.87,191.81,8.36084838]
[1736508317282,2.6059,191.88,191.84,2.6063]
[1736508317583,10.96674838,191.88,191.84,2.6063]
[1736508317783,8.36084838,191.88,191.83,2.6064]
[1736508317976,85.90467089,191.89,191.83,8.36084838]
[1736508318378,10.96654838,191.9,191.85,2.6062]
[1736508318783,8.36084838,191.9,191.85,2.6062]
[1736508319485,2.6058,191.89,191.85,2.6062]
[1736508320688,10.96644838,191.9,191.86,2.6061]
[1736508321589,10.96644838,191.9,191.83,9.96004838]
[1736508321789,10.96644838,191.9,191.87,2.606]
[1736508322194,10.96644838,191.9,191.85,8.36084838]
[1736508322390,10.96644838,191.9,191.86,2.6061]
[1736508333596,8.36084838,191.9,191.86,2.6061]
[1736508333893,2.6058,191.89,191.86,2.6061]
[1736508334697,8.36084838,191.9,191.86,2.6061]
[1736508334893,2.6056,191.9,191.87,2.6059]
[1736508336192,8.36084838,191.91,191.82,3.0239]
[1736508336392,2.6065,191.84,191.82,1.4948]
[1736508336598,2.6065,191.84,191.77,4.7478]
[1736508336798,2.6065,191.84,191.78,8.36084838]
[1736508337497,2.6065,191.84,191.79,2.607]
[1736508337697,2.6065,191.84,191.78,8.36084838]
[1736508337898,2.6065,191.84,191.77,4.7478]
[1736508338198,2.6065,191.84,191.79,8.36084838]
[1736508338701,2.6065,191.84,191.8,2.607]
[1736508339193,8.36084838,191.85,191.79,8.36084838]
[1736508339399,8.36084838,191.85,191.81,2.6067]
[1736508339594,8.36084838,191.85,191.79,8.36084838]
[1736508339793,8.36084838,191.87,191.81,8.36084838]
[1736508340198,8.36084838,191.87,191.83,2.6064]
[1736508341400,8.36084838,191.87,191.8,8.36084838]
[1736508341700,8.36084838,191.89,191.86,2.6062]
[1736508344805,10.96664838,191.89,191.82,8.36084838]
[1736508345006,10.96664838,191.89,191.85,2.6063]
[1736508345509,2.6059,191.88,191.85,2.6063]
[1736508346107,2.6058,191.89,191.82,8.36084838]
[1736508346503,2.6058,191.89,191.85,2.6062]
[1736508348504,8.36084838,191.9,191.77,4.7478]
[1736508348810,2.606,191.87,191.84,2.6064]
[1736508349610,2.6062,191.86,191.83,2.6065]
[1736508349813,10.96704838,191.86,191.83,2.6065]
[1736508351112,2.6062,191.86,191.83,2.6065]
[1736508355219,10.96704838,191.86,191.83,2.6065]
[1736508355618,8.36084838,191.86,191.79,8.36084838]
[1736508356221,2.6065,191.84,191.8,2.6068]
[1736508361322,2.6065,191.84,191.8,10.96764838]
[1736508361521,85.90467089,191.91,191.8,8.36084838]
[1736508361822,8.36084838,191.88,191.8,8.36084838]
[1736508362324,2.6061,191.87,191.83,2.6065]
[1736508362627,2.6061,191.87,191.8,8.36084838]
[1736508362924,10.96704838,191.86,191.81,2.6067]
[1736508363228,8.36084838,191.86,191.77,4.7478]
[1736508363525,8.36084838,191.84,191.77,13.10864838]
[1736508364916,2.6067,191.82,191.77,4.7478]
[1736508365121,8.36084838,191.82,191.77,3.2369]
[1736508365318,8.36084838,191.82,191.76,2.53030045]
[1736508365519,8.36084838,191.8,191.76,2.53030045]
[1736508365820,8.36084838,191.8,191.75,40.93219654]
[1736508366020,8.36084838,191.78,191.75,40.93219654]
[1736508366227,8.36084838,191.78,191.7,8.36084838]
[1736508367026,8.36084838,191.78,191.73,2.6079]
[1736508367027,2.6074,191.77,191.73,2.6079]
[1736508368922,2.6074,191.77,191.72,2.608]
[1736508369824,85.90467089,191.86,191.7,8.36084838]
[1736508369825,8.36084838,191.76,191.7,8.36084838]
[1736508370026,8.36084838,191.76,191.71,2.6082]
[1736508370824,2.6077,191.75,191.71,2.6082]
[1736508371129,8.36084838,191.78,191.73,2.6079]
[1736508371429,2.6076,191.75,191.69,13.06364838]
[1736508372032,2.6076,191.75,191.71,2.6081]
[1736508376130,2.6076,191.75,191.72,2.6081]
[1736508377828,8.36084838,191.74,191.7,2.6082]
[1736508378734,10.96864838,191.74,191.7,2.6082]
[1736508379238,2.6078,191.74,191.71,2.6082]
[1736508379430,10.96864838,191.74,191.71,2.6082]
[1736508380838,8.36084838,191.74,191.71,2.6082]
[1736508382138,8.36084838,191.74,191.69,3.1355]
[1736508382340,10.96864838,191.74,191.7,2.6083]
[1736508385839,8.36084838,191.74,191.71,2.6082]
[1736508386041,8.36084838,191.77,191.7,8.36084838]
[1736508386241,8.36084838,191.79,191.74,8.36084838]
[1736508386446,8.36084838,191.79,191.77,2.6074]
[1736508387747,8.36084838,191.79,191.73,8.36084838]
[1736508387946,10.96794838,191.79,191.76,2.6075]
[1736508391848,10.96794838,191.79,191.73,8.36084838]
[1736508392149,10.96794838,191.79,191.75,2.6076]
[1736508392950,2.6072,191.78,191.75,2.6076]
[1736508401254,2.6072,191.78,191.71,8.36084838]
[1736508401552,2.6072,191.78,191.74,2.6077]
[1736508403454,2.6073,191.78,191.74,2.6077]
[1736508404464,8.36084838,191.77,191.74,2.6077]
[1736508404761,8.36084838,191.75,191.7,1.4983]
[1736508405259,10.96854838,191.75,191.71,2.6081]
[1736508405455,8.36084838,191.75,191.7,1.4983]
[1736508405857,8.36084838,191.77,191.71,8.36084838]
[1736508406058,10.96824838,191.77,191.73,2.6078]
[1736508406459,10.96824838,191.77,191.72,2.608]
[1736508408565,2.6075,191.76,191.71,2.6082]
[1736508408765,8.36084838,191.75,191.71,2.6082]
[1736508409664,10.96854838,191.75,191.7,4.1066]
[1736508411071,2.6077,191.75,191.7,4.1066]
[1736508411366,8.36084838,191.74,191.7,4.1066]
[1736508411562,19.11053094,191.81,191.7,1.4983]
[1736508411563,8.36084838,191.76,191.7,1.4983]
[1736508411867,8.36084838,191.78,191.71,8.36084838]
[1736508412166,10.96794838,191.79,191.74,2.6077]
[1736508413464,2.6071,191.79,191.75,2.6076]
[1736508413663,8.36084838,191.8,191.73,8.36084838]
[1736508414063,8.36084838,191.8,191.76,2.6074]
[1736508414863,10.96784838,191.8,191.76,2.6074]
[1736508415066,8.36084838,191.8,191.72,8.36084838]
[1736508415268,8.36084838,191.8,191.75,2.6076]
[1736508415664,2.6071,191.79,191.75,2.6076]
[1736508416760,10.96814838,191.78,191.7,8.36084838]
[1736508417066,8.36084838,191.76,191.7,8.36084838]
[1736508417271,8.36084838,191.76,191.72,2.608]
[1736508417665,11.48054871,191.84,191.72,2.608]
[1736508417964,8.36084838,191.76,191.73,2.6079]
[1736508418167,8.36084838,191.78,191.71,8.36084838]
[1736508418662,108.66457225,191.84,191.71,8.36084838]
[1736508418867,8.36084838,191.79,191.73,8.36084838]
[1736508419575,8.36084838,191.79,191.71,8.36084838]
[1736508419965,8.36084838,191.77,191.71,8.36084838]
[1736508420467,10.96824838,191.77,191.73,2.6079]
[1736508421072,85.90467089,191.83,191.71,8.36084838]
[1736508421271,8.36084838,191.79,191.71,8.36084838]
[1736508421466,8.36084838,191.8,191.71,8.36084838]
[1736508421666,10.96784838,191.8,191.73,2.6078]
[1736508421871,10.96784838,191.8,191.71,8.36084838]
[1736508422671,10.96784838,191.8,191.76,2.6074]
[1736508422872,8.36084838,191.8,191.73,8.36084838]
[1736508423277,8.36084838,191.8,191.75,2.6076]
[1736508423666,2.6072,191.79,191.75,2.6076]
[1736508424180,8.36084838,191.8,191.75,2.6076]
[1736508424379,2.6072,191.78,191.75,2.6076]
[1736508424673,8.36084838,191.8,191.72,8.36084838]
[1736508424976,10.96784838,191.8,191.76,2.6075]
[1736508425173,10.96784838,191.8,191.72,8.36084838]
[1736508425974,10.96784838,191.8,191.76,2.6074]
[1736508426274,8.36084838,191.8,191.72,8.36084838]
[1736508426475,8.36084838,191.8,191.73,9.95824838]
[1736508426676,8.36084838,191.8,191.76,2.6074]
[1736508426873,10.96784838,191.8,191.76,2.6074]
[1736508428387,8.36084838,191.8,191.73,1.5974]
[1736508428795,3.64937042,191.84,191.76,8.36084838]
[1736508428995,12.0102188,191.84,191.77,1.5827]
[1736508429289,12.0102188,191.84,191.77,3.23]
[1736508429683,12.0102188,191.84,191.78,8.36084838]
[1736508429888,8.36084838,191.84,191.78,8.36084838]
[1736508430186,10.96734838,191.84,191.8,2.6069]
[1736508430986,2.6068,191.81,191.78,2.6072]
[1736508431394,10.96754838,191.82,191.79,2.6071]
[1736508433891,8.36084838,191.82,191.8,2.6069]
[1736508434392,2.6066,191.83,191.8,2.6069]
[1736508435091,10.96724838,191.84,191.8,2.6069]
[1736508435500,10.96724838,191.84,191.81,2.6068]
[1736508435897,8.36084838,191.87,191.79,8.36084838]
[1736508437094,8.36084838,191.87,191.77,3.23]
[1736508437095,10.96694838,191.87,191.83,2.6064]
[1736508437691,2.6061,191.87,191.84,2.6064]
[1736508437996,8.36084838,191.87,191.81,8.36084838]
[1736508438193,85.90467089,191.92,191.83,8.36084838]
[1736508438497,8.36084838,191.9,191.85,8.36084838]
[1736508439395,2.6058,191.89,191.85,2.6062]
[1736508439794,85.90467089,191.96,191.83,8.36084838]
[1736508439988,8.36084838,191.91,191.87,2.6059]
[1736508441798,10.96644838,191.91,191.87,2.6059]
[1736508441989,8.36084838,191.91,191.84,4.5654]
[1736508442193,8.36084838,191.89,191.84,4.5654]
[1736508442494,8.36084838,191.87,191.8,8.36084838]
[1736508442891,10.96694838,191.87,191.83,2.6065]
[1736508444290,8.36084838,191.87,191.8,8.36084838]
[1736508444497,8.36084838,191.85,191.78,8.36084838]
[1736508445094,2.6066,191.83,191.79,2.6071]
[1736508445294,10.96744838,191.83,191.79,2.6071]
[1736508447198,2.6067,191.82,191.78,2.6072]
[1736508447600,8.36084838,191.81,191.74,4.6307]
[1736508447902,8.36084838,191.81,191.76,2.6075]
[1736508448797,2.607,191.8,191.76,2.6075]
[1736508452705,8.36084838,191.81,191.74,3.0953]
[1736508452904,85.90467089,191.89,191.74,3.0953]
[1736508453105,8.36084838,191.8,191.74,3.0953]
[1736508453600,85.90467089,191.89,191.76,2.6074]
[1736508453803,8.36084838,191.81,191.76,2.6074]
[1736508454808,2.607,191.8,191.76,2.6074]
[1736508455004,8.36084838,191.81,191.77,2.6073]
[1736508455808,8.36084838,191.81,191.76,2.6075]
[1736508456108,10.96784838,191.81,191.76,2.6075]
[1736508456505,10.96784838,191.81,191.77,2.6074]
[1736508457311,85.90467089,191.89,191.77,2.6074]
[1736508457611,2.607,191.8,191.77,2.6074]
[1736508459612,2.607,191.8,191.74,11.45614838]
[1736508459811,2.607,191.8,191.76,2.6075]
[1736508460311,8.36084838,191.79,191.74,3.0953]
[1736508460509,85.90467089,191.89,191.67,1.536]
[1736508460510,8.36084838,191.77,191.67,1.536]
[1736508460711,8.36084838,191.77,191.71,8.36084838]
[1736508460906,8.36084838,191.78,191.71,8.36084838]
[1736508461112,10.96814838,191.78,191.73,2.6079]
[1736508461313,8.36084838,191.78,191.73,2.6079]
[1736508462012,8.36084838,191.78,191.7,8.36084838]
[1736508462211,8.36084838,191.78,191.74,2.6077]
[1736508463118,10.96824838,191.78,191.74,2.6077]
[1736508463307,8.36084838,191.78,191.74,2.6077]
[1736508465119,2.6074,191.77,191.74,2.6077]
[1736508465321,2.6074,191.77,191.73,2.6079]
[1736508469319,8.36084838,191.76,191.73,2.6079]
[1736508469613,8.09360864,191.86,191.74,8.36084838]
[1736508469920,8.36084838,191.8,191.75,2.6075]
[1736508470113,8.09360864,191.86,191.74,8.36084838]
[1736508470311,85.90467089,191.87,191.77,2.6074]
[1736508470514,8.36084838,191.81,191.77,2.6074]
[1736508470823,10.96774838,191.81,191.77,2.6074]
[1736508471418,8.36084838,191.81,191.68,3.0929]
[1736508471619,2.6072,191.79,191.75,2.6076]
[1736508471917,8.36084838,191.79,191.72,8.36084838]
[1736508472319,2.6074,191.78,191.74,2.6078]
[1736508472518,8.36084838,191.77,191.71,8.36084838]
[1736508473622,10.96824838,191.77,191.73,2.6078]
[1736508475420,2.6074,191.77,191.71,8.36084838]
[1736508475619,8.36084838,191.79,191.74,2.6078]
[1736508475824,2.6073,191.78,191.74,2.6078]
[1736508476324,85.90467089,191.87,191.73,8.36084838]
[1736508476521,2.6071,191.8,191.76,2.6075]
[1736508476922,8.36084838,191.82,191.75,1.5131]
[1736508477224,8.36084838,191.82,191.75,9.87394838]
[1736508477629,2.607,191.8,191.76,2.6074]
[1736508478319,10.96784838,191.8,191.76,2.6074]
[1736508480926,2.607,191.8,191.76,2.6074]
[1736508481228,85.90467089,191.86,191.75,8.36084838]
[1736508481428,8.36084838,191.83,191.8,2.6069]
[1736508482129,8.36084838,191.83,191.77,8.36084838]
[1736508482429,10.96744838,191.83,191.79,2.607]
[1736508485428,2.6067,191.82,191.78,2.6072]
[1736508488924,8.36084838,191.83,191.78,2.6072]
[1736508489130,2.6068,191.81,191.78,2.6072]
[1736508491028,2.6073,191.78,191.75,1.6287]
[1736508493233,2.6073,191.78,191.75,4.2363]
[1736508499534,2.6072,191.79,191.75,4.2363]
[1736508503640,8.36084838,191.79,191.66,239.87889396]
[1736508503843,2.6078,191.75,191.71,10.96894838]
[1736508504041,2.6078,191.75,191.71,8.36084838]
[1736508504340,2.6075,191.76,191.73,2.6079]
[1736508507647,85.90467089,191.84,191.75,2.6076]
[1736508507942,8.36084838,191.8,191.75,2.6076]
[1736508508332,2.6073,191.78,191.75,2.6076]
[1736508509336,8.36084838,191.8,191.67,4.6443]
[1736508509632,8.36084838,191.8,191.73,2.6078]
[1736508509836,8.36084838,191.8,191.72,8.36084838]
[1736508510037,2.6075,191.77,191.72,10.96884838]
[1736508510244,8.36084838,191.78,191.72,10.96884838]
[1736508510644,2.6076,191.76,191.72,10.96884838]
[1736508513744,2.6076,191.76,191.72,2.608]
[1736508522348,2.6076,191.75,191.72,2.608]
[1736508524452,2.6075,191.76,191.72,2.608]
[1736508525948,2.6075,191.76,191.73,2.6078]
[1736508526846,8.36084838,191.76,191.7,8.36084838]
[1736508527755,8.36084838,191.76,191.68,1.5317]
[1736508527953,8.36084838,191.76,191.68,9.89254838]
[1736508528256,2.6078,191.74,191.71,2.6082]
[1736508529055,2.6078,191.74,191.68,1.5317]
[1736508529257,8.36084838,191.74,191.67,3.1424]
[1736508529453,8.36084838,191.72,191.67,3.1424]
[1736508529652,2.6083,191.71,191.67,3.1424]
[1736508529853,8.36084838,191.72,191.67,3.1424]
[1736508530253,2.6085,191.69,191.67,3.1424]
[1736508530953,2.6084,191.7,191.67,3.1424]
[1736508531252,85.90467089,191.78,191.68,8.36084838]
[1736508531453,8.36084838,191.75,191.68,8.36084838]